[Event "FIDE Women World Blitz 2021"]
[Site "Warsaw"]
[Date "2021.12.29"]
[Round "4.26"]
[White "Mamedjarova, Turkan"]
[Black "Loskutova, Viktoriya"]
[Result "1/2-1/2"]
[ECO "E52"]
[WhiteElo "2264"]
[BlackElo "2195"]
[Annotator "NA"]
[PlyCount "78"]
[EventDate "2021.12.29"]
[EventType "swiss"]
[EventCountry "POL"]
[Tiebreak "Cut1 Buchholz"]
[SourceTitle "playchess.com"]
[Source "ChessBase"]
[SourceQuality "1"]
[TimeControl "180+2"]

1. d4 {[%emt 0:00:02]} Nf6 {[%emt 0:00:01]} 2. c4 {[%emt 0:00:01]} e6 {[%emt 0:
00:00]} 3. Nc3 {[%emt 0:00:02]} Bb4 {[%emt 0:00:01]} 4. Nf3 {[%emt 0:00:01]}
O-O {[%emt 0:00:02]} 5. e3 {[%emt 0:00:01]} d5 {[%emt 0:00:01]} 6. Bd2 {
[%emt 0:00:02]} b6 {[%emt 0:00:04]} 7. Bd3 {[%emt 0:00:07]} Bb7 {[%emt 0:00:02]
} 8. O-O {[%emt 0:00:02]} Bd6 {[%emt 0:00:08]} 9. h3 {[%emt 0:00:22]} c5 {
[%emt 0:00:15]} 10. Rc1 {[%emt 0:00:04]} Nbd7 {[%emt 0:00:19]} 11. Re1 {
[%emt 0:00:11]} Ne4 {[%emt 0:00:07]} 12. cxd5 {[%emt 0:00:25]} exd5 {[%emt 0:
00:04]} 13. Bxe4 {[%emt 0:00:20]} dxe4 {[%emt 0:00:01]} 14. Nh2 {[%emt 0:00:01]
} Qf6 {[%emt 0:00:27]} 15. Qg4 {[%emt 0:00:18]} Rad8 {[%emt 0:00:31]} 16. Nxe4
{[%emt 0:00:10]} Bxe4 {[%emt 0:00:06]} 17. Qxe4 {[%emt 0:00:01]} Bxh2+ {
[%emt 0:00:04]} 18. Kxh2 {[%emt 0:00:01]} Qxf2 {[%emt 0:00:01]} 19. Bc3 {
[%emt 0:00:12]} Nf6 {[%emt 0:00:03]} 20. Qf3 {[%emt 0:00:21]} Qxf3 {[%emt 0:00:
22]} 21. gxf3 {[%emt 0:00:01]} cxd4 {[%emt 0:00:08]} 22. Bxd4 {[%emt 0:00:02]}
Nd5 {[%emt 0:00:02]} 23. Rg1 {[%emt 0:00:20]} f6 {[%emt 0:00:08]} 24. a3 {
[%emt 0:00:01]} Rd7 {[%emt 0:00:08]} 25. Kg3 {[%emt 0:00:07]} Nc7 {[%emt 0:00:
26]} 26. f4 {[%emt 0:00:12]} Nb5 {[%emt 0:00:03]} 27. Bc3 {[%emt 0:00:03]} Nxc3
{[%emt 0:00:11]} 28. Rxc3 {[%emt 0:00:01]} Rfd8 {[%emt 0:00:04]} 29. Kf3 {
[%emt 0:00:02]} Kf7 {[%emt 0:00:01]} 30. a4 {[%emt 0:00:05]} Rd2 {[%emt 0:00:
01]} 31. b4 {[%emt 0:00:02]} R8d7 {[%emt 0:00:02]} 32. Rgc1 {[%emt 0:00:04]}
Rb2 {[%emt 0:00:02]} 33. b5 {[%emt 0:00:02]} Ra2 {[%emt 0:00:03]} 34. Rc4 {
[%emt 0:00:01]} Rh2 {[%emt 0:00:01]} 35. Kg3 {[%emt 0:00:04]} Re2 {[%emt 0:00:
02]} 36. R1c3 {[%emt 0:00:05]} Re7 {[%emt 0:00:01]} 37. Kf3 {[%emt 0:00:04]}
Rh2 {[%emt 0:00:01]} 38. Kg3 {[%emt 0:00:05]} Re2 {[%emt 0:00:01]} 39. Kf3 {
[%emt 0:00:03]} Rh2 {[%emt 0:00:01]} 1/2-1/2

[Event "FIDE Women World Blitz 2021"]
[Site "Warsaw"]
[Date "2021.12.29"]
[Round "4.27"]
[White "Garifullina, Leya"]
[Black "Kurmangaliyeva, Liya"]
[Result "1-0"]
[ECO "B67"]
[WhiteElo "2416"]
[BlackElo "2222"]
[Annotator "NA"]
[PlyCount "97"]
[EventDate "2021.12.29"]
[EventType "swiss"]
[EventCountry "POL"]
[Tiebreak "Cut1 Buchholz"]
[SourceTitle "playchess.com"]
[Source "ChessBase"]
[SourceQuality "1"]
[TimeControl "180+2"]

1. e4 {[%emt 0:00:02]} c5 {[%emt 0:00:01]} 2. Nf3 {[%emt 0:00:01]} d6 {[%emt 0:
00:01]} 3. d4 {[%emt 0:00:01]} cxd4 {[%emt 0:00:02]} 4. Nxd4 {[%emt 0:00:02]}
Nf6 {[%emt 0:00:01]} 5. Nc3 {[%emt 0:00:02]} Nc6 {[%emt 0:00:01]} 6. Bg5 {
[%emt 0:00:04]} e6 {[%emt 0:00:01]} 7. Qd2 {[%emt 0:00:01]} a6 {[%emt 0:00:01]}
8. O-O-O {[%emt 0:00:03]} Bd7 {[%emt 0:00:02]} 9. f4 {[%emt 0:00:04]} b5 {
[%emt 0:00:04]} 10. a3 {[%emt 0:00:04]} Be7 {[%emt 0:00:04]} 11. Bxf6 {[%emt 0:
00:21]} gxf6 {[%emt 0:00:02]} 12. f5 {[%emt 0:00:04]} Qb6 {[%emt 0:00:07]} 13.
Nxc6 {[%emt 0:00:08]} Bxc6 {[%emt 0:00:05]} 14. fxe6 {[%emt 0:00:05]} fxe6 {
[%emt 0:00:02]} 15. Be2 {[%emt 0:00:04]} h5 {[%emt 0:00:18]} 16. Bf3 {[%emt 0:
00:34]} O-O-O {[%emt 0:00:33]} 17. Qd4 {[%emt 0:00:25]} Qxd4 {[%emt 0:00:09]}
18. Rxd4 {[%emt 0:00:02]} Rdg8 {[%emt 0:00:04]} 19. Ne2 {[%emt 0:00:05]} h4 {
[%emt 0:00:07]} 20. h3 {[%emt 0:00:02]} Rg5 {[%emt 0:00:09]} 21. Rd3 {[%emt 0:
00:04]} Re5 {[%emt 0:00:07]} 22. Re3 {[%emt 0:00:30]} f5 {[%emt 0:00:15]} 23.
Nd4 {[%emt 0:00:07]} Bg5 {[%emt 0:00:06]} 24. Nxc6 {[%emt 0:00:16]} Bxe3+ {
[%emt 0:00:02]} 25. Kd1 {[%emt 0:00:02]} Rc5 {[%emt 0:00:09]} 26. exf5 {
[%emt 0:00:01]} exf5 {[%emt 0:00:10]} 27. Ne7+ {[%emt 0:00:02]} Kd7 {[%emt 0:
00:02]} 28. Nd5 {[%emt 0:00:01]} Bg5 {[%emt 0:00:05]} 29. c3 {[%emt 0:00:02]}
Re8 {[%emt 0:00:02]} 30. Nb6+ {[%emt 0:00:02]} Kd8 {[%emt 0:00:06]} 31. Nd5 {
[%emt 0:00:03]} Re5 {[%emt 0:00:02]} 32. Nb4 {[%emt 0:00:01]} Kd7 {[%emt 0:00:
25]} 33. Nxa6 {[%emt 0:00:07]} Rc4 {[%emt 0:00:02]} 34. Nb4 {[%emt 0:00:02]}
Be3 {[%emt 0:00:07]} 35. Nd5 {[%emt 0:00:02]} Ba7 {[%emt 0:00:05]} 36. Nb4 {
[%emt 0:00:03]} Ke6 {[%emt 0:00:06]} 37. Nc6 {[%emt 0:00:02]} Bc5 {[%emt 0:00:
05]} 38. Nxe5 {[%emt 0:00:03]} dxe5 {[%emt 0:00:01]} 39. Be2 {[%emt 0:00:01]}
Rf4 {[%emt 0:00:05]} 40. Rf1 {[%emt 0:00:01]} Re4 {[%emt 0:00:05]} 41. Bxb5 {
[%emt 0:00:01]} Re3 {[%emt 0:00:02]} 42. Rf3 {[%emt 0:00:03]} Rxf3 {[%emt 0:00:
04]} 43. gxf3 {[%emt 0:00:01]} e4 {[%emt 0:00:02]} 44. fxe4 {[%emt 0:00:01]}
fxe4 {[%emt 0:00:01]} 45. Be2 {[%emt 0:00:02]} Ke5 {[%emt 0:00:01]} 46. Bg4 {
[%emt 0:00:01]} Be7 {[%emt 0:00:04]} 47. b4 {[%emt 0:00:02]} Kd5 {[%emt 0:00:
02]} 48. Be2 {[%emt 0:00:02]} Ke5 {[%emt 0:00:03]} 49. a4 {[%emt 0:00:01]} 1-0

[Event "FIDE Women World Blitz 2021"]
[Site "Warsaw"]
[Date "2021.12.29"]
[Round "4.28"]
[White "Atalik, Ekaterina"]
[Black "Dylag, Emilia"]
[Result "0-1"]
[ECO "D02"]
[WhiteElo "2430"]
[BlackElo "1863"]
[Annotator "NA"]
[PlyCount "80"]
[EventDate "2021.12.29"]
[EventType "swiss"]
[EventCountry "POL"]
[Tiebreak "Cut1 Buchholz"]
[SourceTitle "playchess.com"]
[Source "ChessBase"]
[SourceQuality "1"]
[TimeControl "180+2"]

1. Nf3 {[%emt 0:00:01]} d5 {[%emt 0:00:01]} 2. g3 {[%emt 0:00:01]} Nf6 {
[%emt 0:00:01]} 3. Bg2 {[%emt 0:00:02]} e6 {[%emt 0:00:02]} 4. O-O {[%emt 0:00:
03]} Be7 {[%emt 0:00:01]} 5. d4 {[%emt 0:00:04]} O-O {[%emt 0:00:02]} 6. b3 {
[%emt 0:00:05]} b6 {[%emt 0:00:14]} 7. Bb2 {[%emt 0:00:01]} Bb7 {[%emt 0:00:01]
} 8. Nbd2 {[%emt 0:00:02]} c5 {[%emt 0:00:07]} 9. e3 {[%emt 0:00:09]} Nc6 {
[%emt 0:00:09]} 10. Ne5 {[%emt 0:00:05]} cxd4 {[%emt 0:00:32]} 11. exd4 {
[%emt 0:00:05]} Rc8 {[%emt 0:00:20]} 12. Re1 {[%emt 0:00:05]} Nd7 {[%emt 0:00:
15]} 13. Ndf3 {[%emt 0:00:10]} Ndxe5 {[%emt 0:00:15]} 14. Nxe5 {[%emt 0:00:05]}
Nxe5 {[%emt 0:00:03]} 15. Rxe5 {[%emt 0:00:04]} Bf6 {[%emt 0:00:09]} 16. Re3 {
[%emt 0:00:05]} Ba6 {[%emt 0:00:11]} 17. c3 {[%emt 0:00:04]} Qd6 {[%emt 0:00:
11]} 18. Qd2 {[%emt 0:00:03]} Rfd8 {[%emt 0:00:09]} 19. Rae1 {[%emt 0:00:03]}
Bb5 {[%emt 0:00:27]} 20. f4 {[%emt 0:00:06]} a5 {[%emt 0:00:04]} 21. Qf2 {
[%emt 0:00:16]} g6 {[%emt 0:00:04]} 22. g4 {[%emt 0:00:02]} a4 {[%emt 0:00:09]}
23. b4 {[%emt 0:00:16]} Bc4 {[%emt 0:00:02]} 24. a3 {[%emt 0:00:01]} Qe7 {
[%emt 0:00:05]} 25. f5 {[%emt 0:00:08]} Bh4 {[%emt 0:00:04]} 26. Rg3 {[%emt 0:
00:09]} Bxg3 {[%emt 0:00:02]} 27. Qxg3 {[%emt 0:00:01]} Qd6 {[%emt 0:00:03]}
28. Qf2 {[%emt 0:00:12]} exf5 {[%emt 0:00:04]} 29. Bc1 {[%emt 0:00:09]} Re8 {
[%emt 0:00:02]} 30. Rxe8+ {[%emt 0:00:11]} Rxe8 {[%emt 0:00:01]} 31. Bf4 {
[%emt 0:00:07]} Qe6 {[%emt 0:00:01]} 32. Be5 {[%emt 0:00:09]} f6 {[%emt 0:00:
03]} 33. gxf5 {[%emt 0:00:02]} Qxf5 {[%emt 0:00:04]} 34. Qxf5 {[%emt 0:00:02]}
gxf5 {[%emt 0:00:01]} 35. Bxf6 {[%emt 0:00:07]} Re1+ {[%emt 0:00:02]} 36. Kf2 {
[%emt 0:00:02]} Ra1 {[%emt 0:00:02]} 37. b5 {[%emt 0:00:11]} Rxa3 {[%emt 0:00:
04]} 38. Bd8 {[%emt 0:00:02]} Rxc3 {[%emt 0:00:02]} 39. Bxb6 {[%emt 0:00:02]}
a3 {[%emt 0:00:01]} 40. Ba5 {[%emt 0:00:03]} Rc2+ {[%emt 0:00:01]} 0-1

[Event "FIDE Women World Blitz 2021"]
[Site "Warsaw"]
[Date "2021.12.29"]
[Round "4.29"]
[White "Stefanova, Antoaneta"]
[Black "Jarocka, Liwia"]
[Result "1-0"]
[ECO "D02"]
[WhiteElo "2475"]
[BlackElo "1851"]
[Annotator "ChessBase"]
[PlyCount "119"]
[EventDate "2021.12.29"]
[EventType "swiss"]
[EventCountry "POL"]
[Tiebreak "Cut1 Buchholz"]
[SourceTitle "playchess.com"]
[Source "ChessBase"]
[SourceQuality "1"]
[TimeControl "180+2"]

1. Nf3 {[%emt 0:00:01]} Nf6 {[%emt 0:00:01]} 2. g3 {[%emt 0:00:00]} g6 {
[%emt 0:00:02]} 3. Bg2 {[%emt 0:00:01]} d5 {[%emt 0:00:01]} 4. d4 {[%emt 0:00:
04]} Bg7 {[%emt 0:00:02]} 5. O-O {[%emt 0:00:02]} O-O {[%emt 0:00:01]} 6. Be3 {
[%emt 0:00:00]} Bg4 {[%emt 0:00:04]} 7. Ne5 {[%emt 0:00:07]} Be6 {[%emt 0:00:
12]} 8. Qc1 {[%emt 0:00:10]} Nbd7 {[%emt 0:00:03]} 9. Bh6 {[%emt 0:00:15]} Nxe5
{[%emt 0:00:05]} 10. Bxg7 {[%emt 0:00:09]} Kxg7 {[%emt 0:00:02]} 11. dxe5 {
[%emt 0:00:02]} Nd7 {[%emt 0:00:01]} 12. f4 {[%emt 0:00:01]} Nb6 {[%emt 0:00:
15]} 13. Nc3 {[%emt 0:00:12]} c6 {[%emt 0:00:07]} 14. e4 {[%emt 0:00:02]} d4 {
[%emt 0:00:05]} 15. Ne2 {[%emt 0:00:03]} Bc4 {[%emt 0:00:03]} 16. Re1 {[%emt 0:
00:16]} Bxe2 17. Rxe2 {[%emt 0:00:01]} Qc7 {[%emt 0:00:06]} 18. c3 {[%emt 0:00:
24]} Rad8 {[%emt 0:00:11]} 19. cxd4 {[%emt 0:00:09]} Rxd4 {[%emt 0:00:02]} 20.
Qc3 {[%emt 0:00:01]} Rfd8 {[%emt 0:00:03]} 21. Rae1 {[%emt 0:00:02]} e6 {
[%emt 0:00:07]} 22. b3 {[%emt 0:00:10]} Rd3 {[%emt 0:00:04]} 23. Qc1 {[%emt 0:
00:01]} Qd7 {[%emt 0:00:07]} 24. Bf1 {[%emt 0:00:38]} Qd4+ {[%emt 0:00:04]} 25.
Kh1 {[%emt 0:00:04]} Rd1 {[%emt 0:00:04]} 26. Rxd1 {[%emt 0:00:06]} Qxd1 {
[%emt 0:00:01]} 27. Qxd1 {[%emt 0:00:02]} Rxd1 {[%emt 0:00:01]} 28. Kg2 {
[%emt 0:00:01]} c5 {[%emt 0:00:10]} 29. Rc2 {[%emt 0:00:02]} Nd7 {[%emt 0:00:
12]} 30. Be2 {[%emt 0:00:01]} Rd4 {[%emt 0:00:02]} 31. Kf3 {[%emt 0:00:02]} b6
{[%emt 0:00:04]} 32. Ke3 {[%emt 0:00:02]} Kf8 {[%emt 0:00:01]} 33. g4 {[%emt 0:
00:07]} f6 {[%emt 0:00:05]} 34. exf6 {[%emt 0:00:06]} Nxf6 {[%emt 0:00:01]} 35.
Bf3 {[%emt 0:00:01]} Ke7 {[%emt 0:00:06]} 36. g5 {[%emt 0:00:03]} Nd7 {[%emt 0:
00:04]} 37. e5 {[%emt 0:00:03]} a5 {[%emt 0:00:12]} 38. a4 {[%emt 0:00:17]} Nb8
{[%emt 0:00:07]} 39. h4 {[%emt 0:00:06]} Na6 {[%emt 0:00:04]} 40. Rh2 {[%emt 0:
00:02]} Nb4 {[%emt 0:00:08]} 41. Be4 {[%emt 0:00:07]} Rd1 {[%emt 0:00:18]} 42.
h5 {[%emt 0:00:03]} Re1+ {[%emt 0:00:03]} 43. Kf3 {[%emt 0:00:01]} Rf1+ {
[%emt 0:00:03]} 44. Kg3 {[%emt 0:00:02]} Rg1+ {[%emt 0:00:04]} 45. Kf2 {
[%emt 0:00:02]} Ra1 {[%emt 0:00:19]} 46. hxg6 {[%emt 0:00:03]} hxg6 {[%emt 0:
00:01]} 47. Rh7+ {[%emt 0:00:01]} Kd8 {[%emt 0:00:04]} 48. Bxg6 {[%emt 0:00:04]
} Ra2+ {[%emt 0:00:02]} 49. Kg3 {[%emt 0:00:02]} Ra3 {[%emt 0:00:03]} 50. Bf7 {
[%emt 0:00:03]} Rxb3+ {[%emt 0:00:01]} 51. Kg4 {[%emt 0:00:01]} Ke7 {[%emt 0:
00:18]} 52. Bg8+ {[%emt 0:00:02]} Kf8 {[%emt 0:00:04]} 53. Bxe6 {[%emt 0:00:01]
} Rb1 {[%emt 0:00:02]} 54. g6 {[%emt 0:00:01]} Rg1+ {[%emt 0:00:02]} 55. Kf5 {
[%emt 0:00:01]} Nc6 {[%emt 0:00:03]} 56. Rf7+ {[%emt 0:00:03]} Ke8 {[%emt 0:00:
04]} 57. Bd7+ {[%emt 0:00:01]} Kd8 {[%emt 0:00:03]} 58. Bxc6 {[%emt 0:00:01]}
c4 {[%emt 0:00:01]} 59. g7 {[%emt 0:00:03]} c3 {[%emt 0:00:02]} 60. Be4 {
[%emt 0:00:01]} 1-0

[Event "FIDE Women World Blitz 2021"]
[Site "Warsaw"]
[Date "2021.12.29"]
[Round "4.30"]
[White "Rakhmangulova, Anastasiya"]
[Black "Michna, Marta"]
[Result "0-1"]
[ECO "A04"]
[WhiteElo "2174"]
[BlackElo "2312"]
[Annotator "NA"]
[PlyCount "70"]
[EventDate "2021.12.29"]
[EventType "swiss"]
[EventCountry "POL"]
[Tiebreak "Cut1 Buchholz"]
[SourceTitle "playchess.com"]
[Source "ChessBase"]
[SourceQuality "1"]
[TimeControl "180+2"]

1. e4 {[%emt 0:00:01]} e6 {[%emt 0:00:00]} 2. d3 {[%emt 0:00:01]} c5 {[%emt 0:
00:02]} 3. Nf3 {[%emt 0:00:02]} Nc6 {[%emt 0:00:01]} 4. g3 {[%emt 0:00:01]} g6
{[%emt 0:00:01]} 5. Bg2 {[%emt 0:00:01]} Bg7 {[%emt 0:00:01]} 6. O-O {[%emt 0:
00:04]} d6 {[%emt 0:00:02]} 7. c3 {[%emt 0:00:09]} Nge7 {[%emt 0:00:03]} 8. d4
{[%emt 0:00:28]} O-O {[%emt 0:00:41]} 9. Bg5 {[%emt 0:00:12]} h6 {[%emt 0:00:
05]} 10. Be3 {[%emt 0:00:01]} cxd4 {[%emt 0:00:09]} 11. cxd4 {[%emt 0:00:03]}
d5 {[%emt 0:00:02]} 12. e5 {[%emt 0:00:01]} Nf5 {[%emt 0:00:01]} 13. Nc3 {
[%emt 0:00:10]} b6 {[%emt 0:00:29]} 14. Qd2 {[%emt 0:00:05]} Ba6 {[%emt 0:00:
04]} 15. Rfc1 {[%emt 0:00:05]} Na5 {[%emt 0:00:09]} 16. b3 {[%emt 0:00:01]} Rc8
{[%emt 0:00:23]} 17. Rc2 {[%emt 0:00:03]} Nc6 {[%emt 0:00:02]} 18. a3 {[%emt 0:
00:28]} Na5 {[%emt 0:00:01]} 19. Rb1 {[%emt 0:00:02]} Qe7 {[%emt 0:00:04]} 20.
h4 {[%emt 0:00:02]} Nxe3 {[%emt 0:00:03]} 21. Qxe3 {[%emt 0:00:09]} Qxa3 {
[%emt 0:00:02]} 22. h5 {[%emt 0:00:27]} g5 {[%emt 0:00:07]} 23. Nxg5 {[%emt 0:
00:21]} hxg5 {[%emt 0:00:05]} 24. Qxg5 {[%emt 0:00:01]} Kh7 {[%emt 0:00:00]}
25. h6 {[%emt 0:00:33]} Bxh6 {[%emt 0:00:01]} 26. Qh5 {[%emt 0:00:01]} Bd3 {
[%emt 0:00:06]} 27. Bxd5 {[%emt 0:00:07]} exd5 {[%emt 0:00:07]} 28. Nxd5 {
[%emt 0:00:02]} Bxc2 {[%emt 0:00:08]} 29. Nf6+ {[%emt 0:00:04]} Kg7 {[%emt 0:
00:01]} 30. Re1 {[%emt 0:00:05]} Qb4 {[%emt 0:00:13]} 31. Ra1 {[%emt 0:00:08]}
Bg6 {[%emt 0:00:04]} 32. Qg4 {[%emt 0:00:01]} Rc6 {[%emt 0:00:10]} 33. Kg2 {
[%emt 0:00:03]} Rxf6 {[%emt 0:00:03]} 34. exf6+ {[%emt 0:00:02]} Kxf6 {[%emt 0:
00:01]} 35. Rh1 {[%emt 0:00:01]} Kg7 {[%emt 0:00:04]} 0-1

[Event "FIDE Women World Blitz 2021"]
[Site "Warsaw"]
[Date "2021.12.29"]
[Round "4.31"]
[White "Movsesian, Julia"]
[Black "Ovod, Evgenija"]
[Result "1/2-1/2"]
[ECO "C54"]
[WhiteElo "2322"]
[BlackElo "2366"]
[Annotator "NA"]
[PlyCount "83"]
[EventDate "2021.12.29"]
[EventType "swiss"]
[EventCountry "POL"]
[Tiebreak "Cut1 Buchholz"]
[SourceTitle "playchess.com"]
[Source "ChessBase"]
[SourceQuality "1"]
[TimeControl "180+2"]

1. e4 {[%emt 0:00:01]} e5 {[%emt 0:00:00]} 2. Nf3 {[%emt 0:00:01]} Nc6 {
[%emt 0:00:01]} 3. Bc4 {[%emt 0:00:02]} Bc5 {[%emt 0:00:01]} 4. c3 {[%emt 0:00:
01]} Nf6 {[%emt 0:00:01]} 5. d4 {[%emt 0:00:01]} exd4 {[%emt 0:00:01]} 6. b4 {
[%emt 0:00:00]} Bb6 {[%emt 0:00:19]} 7. e5 {[%emt 0:00:02]} d5 {[%emt 0:00:10]}
8. exf6 {[%emt 0:00:03]} dxc4 {[%emt 0:00:02]} 9. Qe2+ {[%emt 0:00:01]} Be6 {
[%emt 0:00:04]} 10. b5 {[%emt 0:00:03]} d3 {[%emt 0:00:42]} 11. Qe4 {[%emt 0:
00:02]} Na5 {[%emt 0:00:11]} 12. fxg7 {[%emt 0:00:04]} Rg8 {[%emt 0:00:01]} 13.
O-O {[%emt 0:00:05]} Qd5 {[%emt 0:00:09]} 14. Qxh7 {[%emt 0:00:11]} O-O-O {
[%emt 0:00:02]} 15. Nbd2 {[%emt 0:00:00]} Qf5 {[%emt 0:00:25]} 16. Qh6 {
[%emt 0:00:22]} Qg4 {[%emt 0:00:13]} 17. Ne5 {[%emt 0:01:05]} Qxg7 {[%emt 0:00:
05]} 18. Qxg7 Rxg7 {[%emt 0:00:01]} 19. Re1 {[%emt 0:00:11]} Bd5 {[%emt 0:00:
14]} 20. Nef3 {[%emt 0:00:10]} Rdg8 {[%emt 0:00:26]} 21. g3 {[%emt 0:00:01]}
Bc5 {[%emt 0:00:07]} 22. Bb2 {[%emt 0:00:10]} f6 {[%emt 0:00:07]} 23. Nd4 {
[%emt 0:00:07]} c6 {[%emt 0:00:06]} 24. bxc6 {[%emt 0:00:07]} Nxc6 {[%emt 0:00:
02]} 25. N2f3 {[%emt 0:00:15]} Nxd4 {[%emt 0:00:03]} 26. Nxd4 {[%emt 0:00:04]}
Kd7 {[%emt 0:00:02]} 27. Re3 {[%emt 0:00:04]} Re8 {[%emt 0:00:05]} 28. Rxe8 {
[%emt 0:00:03]} Kxe8 {[%emt 0:00:01]} 29. Re1+ {[%emt 0:00:01]} Kd7 {[%emt 0:
00:00]} 30. h4 {[%emt 0:00:07]} Re7 {[%emt 0:00:02]} 31. Rxe7+ {[%emt 0:00:04]}
Kxe7 {[%emt 0:00:01]} 32. Kf1 {[%emt 0:00:04]} Bxd4 {[%emt 0:00:08]} 33. cxd4 {
[%emt 0:00:00]} b5 {[%emt 0:00:04]} 34. Bc3 {[%emt 0:00:01]} Bf3 {[%emt 0:00:
03]} 35. Ke1 {[%emt 0:00:01]} Ke6 {[%emt 0:00:03]} 36. Kd2 {[%emt 0:00:01]} Kd5
{[%emt 0:00:00]} 37. a3 {[%emt 0:00:03]} a5 {[%emt 0:00:03]} 38. Bxa5 {[%emt 0:
00:03]} Kxd4 {[%emt 0:00:00]} 39. Bc3+ {[%emt 0:00:01]} Ke4 {[%emt 0:00:03]}
40. Bxf6 {[%emt 0:00:01]} Bh5 {[%emt 0:00:02]} 41. Bc3 {[%emt 0:00:05]} Kf3 {
[%emt 0:00:01]} 42. Bd4 {[%emt 0:00:01]} 1/2-1/2

[Event "FIDE Women World Blitz 2021"]
[Site "Warsaw"]
[Date "2021.12.29"]
[Round "4.32"]
[White "Paramzina, Anastasya"]
[Black "Mammadova, Gulnar"]
[Result "0-1"]
[ECO "B06"]
[WhiteElo "2260"]
[BlackElo "2395"]
[Annotator "NA"]
[PlyCount "84"]
[EventDate "2021.12.29"]
[EventType "swiss"]
[EventCountry "POL"]
[Tiebreak "Cut1 Buchholz"]
[SourceTitle "playchess.com"]
[Source "ChessBase"]
[SourceQuality "1"]
[TimeControl "180+2"]

1. e4 {[%emt 0:00:00]} g6 {[%emt 0:00:01]} 2. d4 {[%emt 0:00:01]} Bg7 {[%emt 0:
00:01]} 3. Nc3 {[%emt 0:00:02]} d6 {[%emt 0:00:01]} 4. Be3 {[%emt 0:00:01]} e6
{[%emt 0:00:03]} 5. Qd2 {[%emt 0:00:04]} b6 {[%emt 0:00:01]} 6. h4 {[%emt 0:00:
02]} h6 {[%emt 0:00:03]} 7. Nf3 {[%emt 0:00:11]} Bb7 {[%emt 0:00:01]} 8. O-O-O
{[%emt 0:00:02]} Nd7 {[%emt 0:00:05]} 9. Bd3 {[%emt 0:00:10]} a6 {[%emt 0:00:
07]} 10. h5 {[%emt 0:00:05]} g5 {[%emt 0:00:01]} 11. Rhe1 {[%emt 0:00:02]} b5 {
[%emt 0:00:09]} 12. Ne2 {[%emt 0:00:28]} Nb6 {[%emt 0:00:14]} 13. Ng3 {[%emt 0:
00:12]} Nf6 {[%emt 0:00:07]} 14. Nh2 {[%emt 0:00:05]} Qd7 {[%emt 0:00:16]} 15.
f4 {[%emt 0:00:05]} Nc4 {[%emt 0:00:13]} 16. Bxc4 {[%emt 0:00:05]} bxc4 {
[%emt 0:00:01]} 17. fxg5 {[%emt 0:00:14]} hxg5 {[%emt 0:00:01]} 18. Bxg5 {
[%emt 0:00:06]} Nxh5 {[%emt 0:00:04]} 19. Nxh5 {[%emt 0:00:02]} Rxh5 {[%emt 0:
00:02]} 20. Ng4 {[%emt 0:00:08]} c3 {[%emt 0:00:15]} 21. bxc3 {[%emt 0:00:10]}
Qa4 {[%emt 0:00:31]} 22. Qf4 {[%emt 0:00:01]} Qa5 {[%emt 0:00:08]} 23. e5 {
[%emt 0:00:10]} Qxc3 {[%emt 0:00:26]} 24. Re3 {[%emt 0:00:13]} Qa5 {[%emt 0:00:
23]} 25. Nf6+ {[%emt 0:00:04]} Bxf6 {[%emt 0:00:01]} 26. Qxf6 {[%emt 0:00:01]}
Rxg5 {[%emt 0:00:01]} 27. Qxg5 {[%emt 0:00:02]} Kd7 {[%emt 0:00:02]} 28. Rb3 {
[%emt 0:00:10]} Bd5 {[%emt 0:00:08]} 29. exd6 {[%emt 0:00:07]} cxd6 {[%emt 0:
00:07]} 30. Rb7+ {[%emt 0:00:10]} Kc6 {[%emt 0:00:14]} 31. Qe7 {[%emt 0:00:09]}
Qa3+ {[%emt 0:00:01]} 32. Kd2 {[%emt 0:00:02]} Qa5+ {[%emt 0:00:01]} 33. Kc1 {
[%emt 0:00:10]} Qa3+ {[%emt 0:00:04]} 34. Kd2 {[%emt 0:00:01]} Qa5+ {[%emt 0:
00:01]} 35. c3 {[%emt 0:00:07]} Bc4 {[%emt 0:00:05]} 36. Rb4 {[%emt 0:00:07]}
Qxa2+ {[%emt 0:00:05]} 37. Kc1 {[%emt 0:00:07]} Qa3+ {[%emt 0:00:02]} 38. Kc2 {
[%emt 0:00:05]} Qa2+ {[%emt 0:00:01]} 39. Kc1 {[%emt 0:00:03]} Qa3+ {[%emt 0:
00:01]} 40. Rb2 {[%emt 0:00:08]} Rb8 {[%emt 0:00:04]} 41. Rdd2 {[%emt 0:00:09]}
Qa1+ {[%emt 0:00:01]} 42. Kc2 {[%emt 0:00:01]} Rxb2# {[%emt 0:00:01]} 0-1